fUSD/lending_fUSD_20240620
["ID","MTS","AMOUNT","RATE_DAILY","PERIOD"]
[329941694,1718851833477,-483.82749365,0.00013597,2]
[329941695,1718851834089,-695.57814897,0.00013597,2]
[329941696,1718851834131,-177.58464882,0.00013598,2]
[329941697,1718851834155,-173.23202768,0.00013598,2]
[329941698,1718851834164,-1505.55266169,0.00013598,2]
[329941699,1718851834175,-476.41464403,0.00013598,2]
[329941700,1718851834185,-3107.08942451,0.00013598,2]
[329941701,1718851834197,-9616.93811078,0.00013598,2]
[329941702,1718851834209,-7523.60226471,0.00013598,2]
[329941703,1718851834220,-4659.17906351,0.00013598,2]
[329941704,1718851834231,-8703.38403649,0.00013598,2]
[329941705,1718851834241,-449.4057,0.00013598,2]
[329941706,1718851834251,-1000.0,0.00013598,2]
[329941707,1718851834261,-420.5517,0.00013598,2]
[329941708,1718851834270,-426.403,0.00013598,2]
[329941709,1718851834279,-1505.55266158,0.00013625,2]
[329941710,1718851834289,-1505.55266158,0.00013653,2]
[329941711,1718851834298,-800.0,0.00013671,2]
[329941712,1718851834307,-800.0,0.00013671,2]
[329941713,1718851834317,-800.0,0.00013671,2]
[329941714,1718851834326,-800.0,0.00013671,2]
[329941715,1718851834336,-800.0,0.00013671,2]
[329941716,1718851834345,-800.0,0.00013671,2]
[329941717,1718851834354,-800.0,0.00013671,2]
[329941718,1718851834363,-800.0,0.00013671,2]
[329941719,1718851834373,-800.0,0.00013671,2]
[329941720,1718851834382,-800.0,0.00013671,2]
[329941721,1718851834391,-779.45,0.00013671,2]
[329941722,1718851834401,-173.23202764,0.00013674,2]
[329941723,1718851834411,-1505.55266158,0.0001368,2]
[329941724,1718851834421,-4481.0182622,0.00013696,2]
[329941725,1718851834430,-157.02434713,0.00013696,2]
[329941726,1718851834440,-238.24931511,0.00013696,2]
[329941727,1718851834449,-379.2615261,0.00013696,2]
[329941728,1718851834459,-493.06470453,0.00013696,2]
[329941729,1718851834471,-269.08545374,0.00013696,2]
[329941730,1718851834480,-479.65985773,0.00013696,2]
[329941731,1718851834489,-158.1890693,0.00013696,2]
[329941732,1718851834498,-1618.03578923,0.00013696,2]
[329941733,1718851834507,-1078.19693273,0.00013696,2]
[329941734,1718851834517,-1642.10331,0.00013696,2]
[329941735,1718851834528,-1344.2434707,0.00013696,2]
[329941736,1718851834538,-1625.58711204,0.00013696,2]
[329941737,1718851834547,-302.13036911,0.00013696,2]
[329941738,1718851834558,-653.74741891,0.00013696,2]
[329941739,1718851834572,-155.43248242,0.00013696,2]
[329941740,1718851834582,-155.7012172,0.00013696,2]
[329941741,1718851834591,-2391.23195611,0.00013696,2]
[329941742,1718851834603,-278.79673745,0.00013696,2]
[329941743,1718851834612,-207.94720402,0.00013696,2]
[329941744,1718851834621,-555.53651491,0.00013696,2]
[329941745,1718851834631,-155.92999673,0.00013696,2]
[329941746,1718851834641,-156.5907404,0.00013696,2]
[329941747,1718851834651,-1265.77060378,0.00013696,2]
[329941748,1718851834662,-3133.837287,0.00013696,2]
[329941749,1718851834672,-223.93395935,0.00013696,2]
[329941750,1718851834681,-162.65291851,0.00013696,2]
[329941751,1718851834691,-4449.51330229,0.00013696,2]
[329941752,1718851834700,-795.53586743,0.00013696,2]
[329941753,1718851834709,-161.37890774,0.00013696,2]
[329941754,1718851834721,-329.49892958,0.00013696,2]
[329941755,1718851834731,-209.19823385,0.00013696,2]
[329941756,1718851834740,-158.08355533,0.00013697,2]
[329941757,1718851834749,-155.88726569,0.00013697,2]
[329941758,1718851834759,-217.62272481,0.00013697,2]
[329941759,1718851834768,-38663.73536975,0.00013697,2]
[329941760,1718851834780,-1288.78172038,0.00013697,2]
[329941761,1718851834792,-1001.78644826,0.00013697,2]
[329941762,1718851834803,-12413.22373184,0.00013697,2]
[329941763,1718851834814,-32462.20604575,0.00013697,2]
[329941764,1718851834824,-500.0,0.00013697,2]
[329941765,1718851834834,-505.59667103,0.00013698,2]
[329941766,1718851834843,-500.0,0.00013698,2]
[329941767,1718851834853,-500.0,0.00013698,2]
[329941768,1718851834863,-500.0,0.00013698,2]
[329941769,1718851834872,-329.55522049,0.00013698,2]
[329941770,1718851834882,-567.87400231,0.00013698,2]
[329941771,1718851834891,-500.0,0.00013698,2]
[329941772,1718851834901,-500.0,0.00013698,2]
[329941773,1718851834910,-500.0,0.00013698,2]
[329941774,1718851834919,-500.0,0.00013698,2]
[329941775,1718851834929,-224.9076409,0.00013698,2]
[329941776,1718851834938,-500.0,0.00013698,2]
[329941777,1718851834947,-500.0,0.00013698,2]
[329941778,1718851834957,-501.9756424,0.00013698,2]
[329941779,1718851834967,-477.05359847,0.00013698,2]
[329941780,1718851834976,-500.0,0.00013698,2]
[329941781,1718851834986,-500.0,0.00013698,2]
[329941782,1718851834996,-500.0,0.00013698,2]
[329941783,1718851835006,-501.74294907,0.00013698,2]
[329941784,1718851835015,-501.22804881,0.00013698,2]
[329941785,1718851835024,-500.0,0.00013698,2]
[329941786,1718851835034,-500.94284183,0.00013698,2]
[329941787,1718851835043,-501.43121098,0.00013698,2]
[329941788,1718851835052,-501.76226807,0.00013698,2]
[329941789,1718851835062,-183.3973576,0.00013698,2]
[329941790,1718851835071,-497.72594113,0.00013698,2]
[329941791,1718851835080,-503.25945424,0.00013698,2]
[329941792,1718851835089,-373.03186518,0.00013698,2]
[329941793,1718851835099,-500.0,0.00013698,2]
[329941794,1718851835108,-507.11333398,0.00013698,2]
[329941795,1718851835117,-497.69387795,0.00013698,2]
[329941796,1718851835126,-194.0166474,0.00013698,2]
[329941797,1718851835135,-507.02867206,0.00013698,2]
[329941798,1718851835144,-200.0,0.00013698,2]
[329941799,1718851835154,-164.69676135,0.00013698,2]
[329941800,1718851835163,-187.0,0.00013698,2]
[329941801,1718851835172,-773.0,0.00013698,2]
[329941802,1718851835181,-153.67925334,0.00013698,2]
[329941803,1718851835190,-501.33978162,0.00013698,2]
[329941804,1718851835199,-500.0,0.00013698,2]
[329941805,1718851835208,-500.0,0.00013698,2]
[329941806,1718851835219,-500.0,0.00013698,2]
[329941807,1718851835228,-500.0,0.00013698,2]
[329941808,1718851835237,-500.0,0.00013698,2]
[329941809,1718851835246,-500.0,0.00013698,2]
[329941810,1718851835255,-525.18191636,0.00013698,2]
[329941811,1718851835265,-500.0,0.00013698,2]
[329941812,1718851835274,-500.0,0.00013698,2]
[329941813,1718851835284,-500.0,0.00013698,2]
[329941814,1718851835294,-500.0,0.00013698,2]
[329941815,1718851835303,-550.47,0.00013698,2]
[329941816,1718851835313,-517.45,0.00013698,2]
[329941817,1718851835322,-500.0,0.00013698,2]
[329941818,1718851835331,-500.0,0.00013698,2]
[329941819,1718851835340,-500.0,0.00013698,2]
[329941820,1718851835350,-500.0,0.00013698,2]
[329941821,1718851835359,-500.0,0.00013698,2]
[329941822,1718851835369,-500.0,0.00013698,2]
[329941823,1718851835378,-500.0,0.00013698,2]
[329941824,1718851835388,-500.0,0.00013698,2]
[329941825,1718851835397,-503.84659915,0.00013698,2]
[329941826,1718851835406,-500.0,0.00013698,2]
[329941827,1718851835415,-500.0,0.00013698,2]
[329941828,1718851835424,-500.0,0.00013698,2]
[329941829,1718851835433,-500.0,0.00013698,2]
[329941830,1718851835443,-500.0,0.00013698,2]
[329941831,1718851835452,-539.18133345,0.00013698,2]
[329941832,1718851835462,-500.0,0.00013698,2]
[329941833,1718851835472,-500.0,0.00013698,2]
[329941834,1718851835482,-714.35,0.00013698,2]
[329941835,1718851835491,-500.0,0.00013698,2]
[329941836,1718851835502,-500.0,0.00013698,2]
[329941837,1718851835512,-500.0,0.00013698,2]
[329941838,1718851835521,-500.0,0.00013698,2]
[329941839,1718851835530,-500.0,0.00013698,2]
[329941840,1718851835540,-596.03,0.00013698,2]
[329941841,1718851835549,-608.60159718,0.00013698,2]
[329941842,1718851835560,-500.0,0.00013698,2]
[329941843,1718851835573,-507.29889875,0.00013698,2]
[329941844,1718851835582,-492.9,0.00013698,2]
[329941845,1718851835591,-504.33534236,0.00013698,2]
[329941846,1718851835600,-502.04864933,0.00013698,2]
[329941847,1718851835611,-500.0,0.00013698,2]
[329941848,1718851835620,-501.66762547,0.00013698,2]
[329941849,1718851835630,-644.46807417,0.00013698,2]
[329941850,1718851835639,-503.97581454,0.00013698,2]
[329941851,1718851835651,-500.0,0.00013698,2]
[329941852,1718851835661,-500.0,0.00013698,2]
[329941853,1718851835670,-543.33582158,0.00013698,2]
[329941854,1718851835680,-500.0,0.00013698,2]
[329941855,1718851835689,-500.0,0.00013698,2]
[329941856,1718851835699,-500.0,0.00013698,2]
[329941857,1718851835708,-500.0,0.00013698,2]
[329941858,1718851835721,-537.91,0.00013698,2]
[329941859,1718851835730,-500.0,0.00013698,2]
[329941860,1718851835740,-500.0,0.00013698,2]
[329941861,1718851835749,-510.0123459,0.00013698,2]
[329941862,1718851835759,-500.0,0.00013698,2]
[329941863,1718851835768,-500.0,0.00013698,2]
[329941864,1718851835777,-502.0090957,0.00013698,2]
[329941865,1718851835786,-585.42,0.00013698,2]
[329941866,1718851835796,-500.0,0.00013698,2]
[329941867,1718851835805,-500.0,0.00013698,2]
[329941868,1718851835814,-500.0,0.00013698,2]
[329941869,1718851835824,-556.52,0.00013698,2]
[329941870,1718851835833,-500.0,0.00013698,2]
[329941871,1718851835843,-500.0,0.00013698,2]
[329941872,1718851835852,-516.78,0.00013698,2]
[329941873,1718851835861,-508.18607966,0.00013698,2]
[329941874,1718851835870,-500.0,0.00013698,2]
[329941875,1718851835879,-500.0,0.00013698,2]
[329941876,1718851835889,-500.0,0.00013698,2]
[329941877,1718851835898,-500.0,0.00013698,2]
[329941878,1718851835908,-512.44519462,0.00013698,2]
[329941879,1718851835917,-500.0,0.00013698,2]
[329941880,1718851835927,-500.0,0.00013698,2]
[329941881,1718851835936,-556.14785984,0.00013698,2]
[329941882,1718851835945,-500.0,0.00013698,2]
[329941883,1718851835955,-500.0,0.00013698,2]
[329941884,1718851835964,-569.88052765,0.00013698,2]
[329941885,1718851835974,-303.16626962,0.00013698,2]
[329941886,1718851835983,-500.0,0.00013698,2]
[329941887,1718851835993,-500.0,0.00013698,2]
[329941888,1718851836002,-502.86131498,0.00013698,2]
[329941889,1718851836012,-500.0,0.00013698,2]
[329941890,1718851836021,-500.0,0.00013698,2]
[329941891,1718851836030,-500.0,0.00013698,2]
[329941892,1718851836040,-500.0,0.00013698,2]
[329941893,1718851836049,-500.0,0.00013698,2]
[329941894,1718851836059,-500.0,0.00013698,2]
[329941895,1718851836068,-500.0,0.00013698,2]
[329941896,1718851836078,-500.0,0.00013698,2]
[329941897,1718851836087,-500.0,0.00013698,2]
[329941898,1718851836096,-500.0,0.00013698,2]
[329941899,1718851836106,-501.18520705,0.00013698,2]
[329941900,1718851836116,-500.0,0.00013698,2]
[329941901,1718851836125,-500.0,0.00013698,2]
[329941902,1718851836134,-500.0,0.00013698,2]
[329941903,1718851836143,-375.45542607,0.00013698,2]
[329941904,1718851836153,-500.97621891,0.00013698,2]
[329941905,1718851836163,-552.71258644,0.00013698,2]
[329941906,1718851836172,-500.0,0.00013698,2]
[329941907,1718851836181,-500.0,0.00013698,2]
[329941908,1718851836191,-500.0,0.00013698,2]
[329941909,1718851836200,-500.0,0.00013698,2]
[329941910,1718851836210,-500.0,0.00013698,2]
[329941911,1718851836220,-531.77665333,0.00013698,2]
[329941912,1718851836229,-634.33,0.00013698,2]
[329941913,1718851836239,-500.0,0.00013698,2]
[329941914,1718851836248,-609.51,0.00013698,2]
[329941915,1718851836258,-571.10069778,0.00013698,2]
[329941916,1718851836267,-500.0,0.00013698,2]
[329941917,1718851836276,-500.0,0.00013698,2]
[329941918,1718851836285,-500.0,0.00013698,2]
[329941919,1718851836294,-500.0,0.00013698,2]
[329941920,1718851836303,-500.0,0.00013698,2]
[329941921,1718851836312,-500.0,0.00013698,2]
[329941922,1718851836322,-555.59,0.00013698,2]
[329941923,1718851836331,-500.0,0.00013698,2]
[329941924,1718851836340,-500.0,0.00013698,2]
[329941925,1718851836349,-508.62107987,0.00013698,2]
[329941926,1718851836359,-502.69331285,0.00013698,2]
[329941927,1718851836368,-500.0,0.00013698,2]
[329941928,1718851836377,-507.93808148,0.00013698,2]
[329941929,1718851836386,-605.39768372,0.00013698,2]
[329941930,1718851836395,-500.0,0.00013698,2]
[329941931,1718851836404,-500.0,0.00013698,2]
[329941932,1718851836414,-513.11436067,0.00013698,2]
[329941933,1718851836423,-500.0,0.00013698,2]
[329941934,1718851836432,-500.0,0.00013698,2]
[329941935,1718851836442,-500.0,0.00013698,2]
[329941936,1718851836451,-500.0,0.00013698,2]
[329941937,1718851836460,-500.0,0.00013698,2]
[329941938,1718851836470,-500.0,0.00013698,2]
[329941939,1718851836479,-512.01744815,0.00013698,2]
[329941940,1718851836488,-762.68,0.00013698,2]
[329941941,1718851836498,-190.00115882,0.00013698,2]
[329941942,1718851836507,-500.0,0.00013698,2]
[329941943,1718851836516,-500.0,0.00013698,2]
[329941944,1718851836525,-500.0,0.00013698,2]
[329941945,1718851836535,-496.4782199,0.00013698,2]
[329941946,1718851836544,-500.0,0.00013698,2]
[329941947,1718851836554,-501.23612936,0.00013698,2]
[329941948,1718851836566,-509.94,0.00013698,2]
[329941949,1718851836576,-506.3973127,0.00013698,2]
[329941950,1718851836585,-500.0,0.00013698,2]
[329941951,1718851836594,-500.762541,0.00013698,2]
[329941952,1718851836604,-500.0,0.00013698,2]
[329941953,1718851836614,-500.0,0.00013698,2]
[329941954,1718851836624,-500.0,0.00013698,2]
[329941955,1718851836634,-626.52,0.00013698,2]
[329941956,1718851836647,-500.0,0.00013698,2]
[329941957,1718851836656,-500.0,0.00013698,2]
[329941958,1718851836666,-500.0,0.00013698,2]
[329941959,1718851836676,-500.0,0.00013698,2]
[329941960,1718851836686,-347.65343063,0.00013698,2]
[329941961,1718851836695,-500.0,0.00013698,2]
[329941962,1718851836704,-516.66,0.00013698,2]
[329941963,1718851836714,-564.5,0.00013698,2]
[329941964,1718851836724,-393.57382299,0.00013698,2]
[329941965,1718851836734,-193.74781339,0.00013698,2]
[329941966,1718851836745,-500.0,0.00013698,2]
[329941967,1718851836754,-504.72549181,0.00013698,2]
[329941968,1718851836764,-501.47515905,0.00013698,2]
[329941969,1718851836774,-500.0,0.00013698,2]
[329941970,1718851836784,-504.6613864,0.00013698,2]
[329941971,1718851836794,-500.0,0.00013698,2]
[329941972,1718851836803,-500.0,0.00013698,2]
[329941973,1718851836813,-502.44658719,0.00013698,2]
[329941974,1718851836823,-500.0,0.00013698,2]
[329941975,1718851836832,-500.0,0.00013698,2]
[329941976,1718851836842,-510.27044223,0.00013698,2]
[329941977,1718851836851,-500.0,0.00013698,2]
[329941978,1718851836861,-500.0,0.00013698,2]
[329941979,1718851836870,-500.0,0.00013698,2]
[329941980,1718851836879,-533.78125455,0.00013698,2]
[329941981,1718851836888,-503.06167264,0.00013698,2]
[329941982,1718851836897,-503.44326165,0.00013698,2]
[329941983,1718851836907,-500.0,0.00013698,2]
[329941984,1718851836916,-500.0,0.00013698,2]
[329941985,1718851836925,-500.0,0.00013698,2]
[329941986,1718851836934,-503.824533,0.00013698,2]
[329941987,1718851836944,-502.38705793,0.00013698,2]
[329941988,1718851836953,-500.0,0.00013698,2]
[329941989,1718851836963,-500.0,0.00013698,2]
[329941990,1718851836972,-503.48034266,0.00013698,2]
[329941991,1718851836982,-500.0,0.00013698,2]
[329941992,1718851836991,-500.0,0.00013698,2]
[329941993,1718851837000,-500.0,0.00013698,2]
[329941994,1718851837009,-500.0,0.00013698,2]
[329941995,1718851837019,-500.0,0.00013698,2]
[329941996,1718851837028,-500.0,0.00013698,2]
[329941997,1718851837038,-500.0,0.00013698,2]
[329941998,1718851837047,-515.95230285,0.00013698,2]
[329941999,1718851837057,-504.83587443,0.00013698,2]
[329942000,1718851837067,-500.0,0.00013698,2]
[329942001,1718851837076,-500.0,0.00013698,2]
[329942002,1718851837085,-500.0,0.00013698,2]
[329942003,1718851837095,-500.0,0.00013698,2]
[329942004,1718851837104,-500.0,0.00013698,2]
[329942005,1718851837114,-500.0,0.00013698,2]
[329942006,1718851837123,-500.0,0.00013698,2]
[329942007,1718851837133,-500.0,0.00013698,2]
[329942008,1718851837143,-630.66456376,0.00013698,2]
[329942009,1718851837152,-500.0,0.00013698,2]
[329942010,1718851837162,-515.14221418,0.00013698,2]
[329942011,1718851837172,-500.0,0.00013698,2]
[329942012,1718851837182,-500.0,0.00013698,2]
[329942013,1718851837191,-500.0,0.00013698,2]
[329942014,1718851837202,-500.0,0.00013698,2]
[329942015,1718851837212,-674.0,0.00013698,2]
[329942016,1718851837222,-500.0,0.00013698,2]
[329942017,1718851837232,-500.0,0.00013698,2]
[329942018,1718851837241,-500.0,0.00013698,2]
[329942019,1718851837251,-500.0,0.00013698,2]
[329942020,1718851837261,-620.20573865,0.00013698,2]
[329942021,1718851837271,-507.2,0.00013698,2]
[329942022,1718851837281,-503.37156279,0.00013698,2]
[329942023,1718851837290,-500.0,0.00013698,2]
[329942024,1718851837300,-500.0,0.00013698,2]
[329942025,1718851837310,-501.89120445,0.00013698,2]
[329942026,1718851837320,-521.45,0.00013698,2]
[329942027,1718851837329,-500.0,0.00013698,2]
[329942028,1718851837339,-500.0,0.00013698,2]
[329942029,1718851837348,-657.36,0.00013698,2]
[329942030,1718851837359,-500.0,0.00013698,2]
[329942031,1718851837368,-500.0,0.00013698,2]
[329942032,1718851837378,-510.15749087,0.00013698,2]
[329942033,1718851837388,-514.62047585,0.00013698,2]
[329942034,1718851837397,-500.0,0.00013698,2]
[329942035,1718851837407,-505.22689058,0.00013698,2]
[329942036,1718851837416,-500.0,0.00013698,2]
[329942037,1718851837615,-500.0,0.00013698,2]
[329942038,1718851837659,-500.0,0.00013698,2]
[329942039,1718851837670,-503.83755288,0.00013698,2]
[329942040,1718851837680,-500.0,0.00013698,2]
[329942041,1718851837689,-500.0,0.00013698,2]
[329942042,1718851837699,-500.0,0.00013698,2]
[329942043,1718851837708,-506.42921635,0.00013698,2]
[329942044,1718851837718,-501.6530814,0.00013698,2]
[329942045,1718851837730,-500.0,0.00013698,2]
[329942046,1718851837740,-505.39612236,0.00013698,2]
[329942047,1718851837749,-500.0,0.00013698,2]
[329942048,1718851837759,-92.38637807,0.00013698,2]
[329942049,1718851837796,-407.61362193,0.00013698,2]
[329942050,1718851837806,-141.08773009,0.00013698,2]
[329942155,1718851839796,-358.91226991,0.00013698,2]
[329942156,1718851839806,-538.37,0.00013698,2]
[329942157,1718851839817,-508.64235307,0.00013698,2]
[329942158,1718851839827,-80.07537684,0.00013698,2]
[329942159,1718851839840,-425.99858623,0.00013698,2]
[329942160,1718851839850,-500.0,0.00013698,2]
[329942161,1718851839860,-500.0,0.00013698,2]
[329942162,1718851839871,-500.0,0.00013698,2]
[329942163,1718851839881,-500.0,0.00013698,2]
[329942164,1718851839891,-506.03808031,0.00013698,2]
[329942165,1718851839903,-502.89473835,0.00013698,2]
[329942166,1718851839913,-55.09227383,0.00013698,2]
[329942167,1718851839988,-450.26372858,0.00013698,2]
[329942168,1718851839998,-501.07198451,0.00013698,2]
[329942169,1718851840008,-500.0,0.00013698,2]
[329942170,1718851840019,-500.0,0.00013698,2]
[329942171,1718851840029,-500.0,0.00013698,2]
[329942172,1718851840038,-502.32741218,0.00013698,2]
[329942173,1718851840047,-500.0,0.00013698,2]
[329942174,1718851840057,-502.59470697,0.00013698,2]
[329942175,1718851840066,-500.0,0.00013698,2]
[329942176,1718851840076,-500.0,0.00013698,2]
[329942177,1718851840086,-504.72279398,0.00013698,2]
[329942178,1718851840095,-507.98077758,0.00013698,2]
[329942179,1718851840105,-634.9,0.00013698,2]
[329942180,1718851840114,-500.0,0.00013698,2]
[329942181,1718851840123,-500.0,0.00013698,2]
[329942182,1718851840132,-575.73,0.00013698,2]
[329942183,1718851840141,-227.99617487,0.00013698,2]
[329942184,1718851840150,-500.0,0.00013698,2]
[329942185,1718851840159,-506.12566141,0.00013698,2]
[329942186,1718851840169,-509.28861991,0.00013698,2]
[329942187,1718851840178,-503.05341388,0.00013698,2]
[329942188,1718851840188,-503.74175224,0.00013698,2]
[329942189,1718851840197,-527.14,0.00013698,2]
[329942190,1718851840207,-500.0,0.00013698,2]
[329942191,1718851840216,-1507.51264895,0.00013698,2]
[329942192,1718851840233,-135.94735105,0.00013698,2]
[329942193,1718851840242,-500.0,0.00013698,2]
[329942194,1718851840252,-500.0,0.00013698,2]
[329942195,1718851840261,-500.0,0.00013698,2]
[329942196,1718851840272,-500.0,0.00013698,2]
[329942197,1718851840282,-500.0,0.00013698,2]
[329942198,1718851840292,-500.0,0.00013698,2]
[329942199,1718851840302,-1175.27,0.00013698,2]
[329942200,1718851840312,-500.0,0.00013698,2]
[329942201,1718851840322,-500.0,0.00013698,2]
[329942202,1718851840331,-324.17729395,0.00013698,2]
[329942203,1718851840341,-500.0,0.00013698,2]
[329942204,1718851840352,-506.84173794,0.00013698,2]
[329942205,1718851840362,-540.5,0.00013698,2]
[329942206,1718851840372,-500.0,0.00013698,2]
[329942207,1718851840381,-500.0,0.00013698,2]
[329942208,1718851840390,-500.0,0.00013698,2]
[329942209,1718851840400,-529.70916396,0.00013698,2]
[329942210,1718851840409,-500.0,0.00013698,2]
[329942211,1718851840419,-501.86653947,0.00013698,2]
[329942212,1718851840428,-500.0,0.00013698,2]
[329942213,1718851840437,-500.0,0.00013698,2]
[329942214,1718851840447,-500.0,0.00013698,2]
[329942215,1718851840456,-500.0,0.00013698,2]
[329942216,1718851840466,-506.40500979,0.00013698,2]
[329942217,1718851840476,-508.54197307,0.00013698,2]
[329942218,1718851840487,-725.21,0.00013698,2]
[329942219,1718851840497,-500.0,0.00013698,2]
[329942220,1718851840507,-500.0,0.00013698,2]
[329942221,1718851840516,-500.0,0.00013698,2]
[329942222,1718851840526,-873.56,0.00013698,2]
[329942223,1718851840535,-509.21881634,0.00013698,2]
[329942224,1718851840545,-500.0,0.00013698,2]
[329942226,1718851840555,-500.0,0.00013698,2]
[329942228,1718851840571,-500.0,0.00013698,2]
[329942230,1718851840580,-504.9597929,0.00013698,2]
[329942231,1718851840590,-530.85261443,0.00013698,2]
[329942233,1718851840600,-500.0,0.00013698,2]
[329942235,1718851840610,-604.07,0.00013698,2]
[329942237,1718851840619,-500.0,0.00013698,2]
[329942238,1718851840629,-504.7674911,0.00013698,2]
[329942240,1718851840640,-505.56259338,0.00013698,2]
[329942242,1718851840652,-500.0,0.00013698,2]
[329942244,1718851840662,-500.0,0.00013698,2]
[329942246,1718851840671,-500.0,0.00013698,2]
[329942248,1718851840681,-500.0,0.00013698,2]
[329942249,1718851840690,-500.0,0.00013698,2]
[329942250,1718851840700,-500.0,0.00013698,2]
[329942251,1718851840709,-500.0,0.00013698,2]
[329942252,1718851840719,-505.30898503,0.00013698,2]
[329942253,1718851840730,-905.52,0.00013698,2]
[329942254,1718851840739,-517.52111172,0.00013698,2]
[329942255,1718851840749,-505.57235075,0.00013698,2]
[329942256,1718851840759,-507.6901801,0.00013698,2]
[329942257,1718851840768,-500.0,0.00013698,2]
[329942258,1718851840777,-500.0,0.00013698,2]
[329942259,1718851840786,-500.0,0.00013698,2]
[329942260,1718851840796,-504.2,0.00013698,2]
[329942261,1718851840805,-500.0,0.00013698,2]
[329942262,1718851840815,-507.65954277,0.00013698,2]
[329942263,1718851840825,-570.12,0.00013698,2]
[329942264,1718851840835,-882.25,0.00013698,2]
[329942265,1718851840844,-427.88594643,0.00013698,2]
[329942266,1718851840860,-79.06782226,0.00013698,2]
[329942267,1718851840870,-500.0,0.00013698,2]
[329942268,1718851840880,-523.29708855,0.00013698,2]
[329942269,1718851840889,-530.36,0.00013698,2]
[329942270,1718851840899,-295.51198419,0.00013698,2]
[329942271,1718851840911,-204.48801581,0.00013698,2]
[329942272,1718851840920,-67.12359019,0.00013698,2]
[329942273,1718851840932,-360.82244232,0.00013698,2]
[329942274,1718851840941,-507.40928876,0.00013698,2]
[329942275,1718851840950,-647.39735694,0.00013698,2]
[329942276,1718851840960,-500.0,0.00013698,2]
[329942277,1718851840969,-501.81396842,0.00013698,2]
[329942278,1718851840979,-500.0,0.00013698,2]
[329942279,1718851840988,-500.0,0.00013698,2]
[329942280,1718851840998,-500.0,0.00013698,2]
[329942281,1718851841007,-505.36098255,0.00013698,2]
[329942282,1718851841017,-500.0,0.00013698,2]
[329942283,1718851841026,-500.0,0.00013698,2]
[329942284,1718851841036,-500.0,0.00013698,2]
[329942285,1718851841045,-500.0,0.00013698,2]
[329942286,1718851841054,-506.3590282,0.00013698,2]
[329942287,1718851841064,-500.0,0.00013698,2]
[329942288,1718851841073,-717.45,0.00013698,2]
[329942289,1718851841082,-1122.33,0.00013698,2]
[329942290,1718851841093,-500.0,0.00013698,2]
[329942291,1718851841102,-693.21,0.00013698,2]
[329942292,1718851841111,-500.0,0.00013698,2]
[329942293,1718851841121,-750.68,0.00013698,2]
[329942294,1718851841130,-500.0,0.00013698,2]
[329942295,1718851841140,-509.38700767,0.00013698,2]
[329942296,1718851841149,-500.0,0.00013698,2]
[329942297,1718851841158,-513.47,0.00013698,2]
[329942298,1718851841168,-500.0,0.00013698,2]
[329942299,1718851841178,-1000.0,0.00013698,2]
[329942300,1718851841187,-500.0,0.00013698,2]
[329942301,1718851841197,-601.89,0.00013698,2]
[329942302,1718851841206,-836.99,0.00013698,2]
[329942303,1718851841215,-883.39,0.00013698,2]
[329942304,1718851841227,-504.00368774,0.00013698,2]
[329942305,1718851841236,-500.0,0.00013698,2]
[329942306,1718851841245,-500.0,0.00013698,2]
[329942307,1718851841254,-500.0,0.00013698,2]
[329942308,1718851841264,-489.8179337,0.00013698,2]